fUST/lending_fUST_20240609
["ID","MTS","AMOUNT","RATE_DAILY","PERIOD"]
[328846180,1717871451809,-500.0,0.00017534,2]
[328846181,1717871451820,-627.17,0.00017534,2]
[328846182,1717871451829,-500.0,0.00017534,2]
[328846183,1717871451843,-500.0,0.00017534,2]
[328846184,1717871451853,-615.68,0.00017534,2]
[328846185,1717871451864,-1169.43,0.00017534,2]
[328846186,1717871451873,-500.0,0.00017534,2]
[328846187,1717871451886,-9986.09,0.00017534,2]
[328846188,1717871451896,-500.0,0.00017534,2]
[328846189,1717871451907,-729.54,0.00017534,2]
[328846190,1717871451917,-592.49,0.00017534,2]
[328846191,1717871451928,-406.56,0.00017534,2]
[328846192,1717871451939,-500.0,0.00017534,2]
[328846193,1717871451954,-536.21,0.00017534,2]
[328846194,1717871451964,-2453.06,0.00017534,2]
[328846195,1717871451974,-1467.98,0.00017534,2]
[328846196,1717871451985,-607.62,0.00017534,2]
[328846197,1717871451995,-500.0,0.00017534,2]
[328846198,1717871452005,-591.77,0.00017534,2]
[328846199,1717871452014,-500.0,0.00017534,2]
[328846200,1717871452025,-3580.48,0.00017534,2]
[328846201,1717871452034,-500.0,0.00017534,2]
[328846202,1717871452044,-724.7,0.00017534,2]
[328846203,1717871452052,-709.55,0.00017534,2]
[328846204,1717871452062,-500.0,0.00017534,2]
[328846205,1717871452071,-500.0,0.00017534,2]
[328846206,1717871452080,-1740.05,0.00017534,2]
[328846207,1717871452089,-673.37,0.00017534,2]
[328846208,1717871452099,-1449.68,0.00017534,2]
[328846209,1717871452108,-500.0,0.00017534,2]
[328846210,1717871452118,-500.0,0.00017534,2]
[328846211,1717871452127,-1057.93,0.00017534,2]
[328846212,1717871452137,-2745.31,0.00017534,2]
[328846213,1717871452146,-509.58,0.00017534,2]
[328846214,1717871452155,-542.32,0.00017534,2]
[328846215,1717871452164,-500.0,0.00017534,2]
[328846216,1717871452173,-731.55,0.00017534,2]
[328846217,1717871452183,-587.08,0.00017534,2]
[328846218,1717871452192,-500.0,0.00017534,2]
[328846219,1717871452201,-794.29,0.00017534,2]
[328846220,1717871452210,-500.0,0.00017534,2]
[328846221,1717871452220,-500.0,0.00017534,2]
[328846222,1717871452229,-672.01,0.00017806,2]
[328846223,1717871452239,-310.55438942,0.00017807,2]
[328846224,1717871452249,-672.01,0.00017807,2]
[328846225,1717871452258,-500.0,0.00017808,2]
[328846226,1717871452267,-500.0,0.00017808,2]
[328846227,1717871452276,-500.0,0.00017808,2]
[328846228,1717871452286,-506.47,0.00017808,2]
[328846229,1717871452296,-500.0,0.00017808,2]
[328846230,1717871452305,-500.0,0.00017808,2]
[328846231,1717871452315,-602.76468584,0.00017808,2]
[328846232,1717871452324,-500.0,0.00017808,2]
[328846233,1717871452334,-587.64,0.00017808,2]
[328846234,1717871452344,-626.0,0.00017808,2]
[328846235,1717871452353,-500.0,0.00017808,2]
[328846236,1717871452363,-500.0,0.00017808,2]
[328846237,1717871452373,-500.0,0.00017808,2]
[328846238,1717871452383,-704.28,0.00017808,2]
[328846239,1717871452392,-500.0,0.00017808,2]
[328846240,1717871452402,-2443.88,0.00017808,2]
[328846241,1717871452411,-500.0,0.00017808,2]
[328846242,1717871452421,-627.17,0.00017808,2]
[328846243,1717871452431,-500.0,0.00017808,2]
[328846244,1717871452440,-500.0,0.00017808,2]
[328846245,1717871452450,-615.68,0.00017808,2]
[328846246,1717871452459,-1169.43,0.00017808,2]
[328846247,1717871452469,-500.0,0.00017808,2]
[328846248,1717871452478,-9986.09,0.00017808,2]
[328846249,1717871452489,-500.0,0.00017808,2]
[328846250,1717871452499,-729.54,0.00017808,2]
[328846251,1717871452508,-592.49,0.00017808,2]
[328846252,1717871452518,-500.0,0.00017808,2]
[328846253,1717871452527,-2453.06,0.00017808,2]
[328846254,1717871452537,-1467.98,0.00017808,2]
[328846255,1717871452547,-607.62,0.00017808,2]
[328846256,1717871452556,-500.0,0.00017808,2]
[328846257,1717871452566,-591.77,0.00017808,2]
[328846258,1717871452576,-500.0,0.00017808,2]
[328846259,1717871452586,-3580.48,0.00017808,2]
[328846260,1717871452595,-555.11642123,0.00017808,2]
[328846261,1717871452605,-724.7,0.00017808,2]
[328846262,1717871452615,-709.55,0.00017808,2]
[328846263,1717871452624,-346.28,0.00017808,2]
[328846264,1717871452634,-500.0,0.00017808,2]
[328846265,1717871452644,-1740.05,0.00017808,2]
[328846266,1717871452653,-673.37,0.00017808,2]
[328846267,1717871452663,-1449.68,0.00017808,2]
[328846268,1717871452672,-500.0,0.00017808,2]
[328846269,1717871452682,-483.14144495,0.00017808,2]
[328846270,1717871452691,-1057.93,0.00017808,2]
[328846271,1717871452701,-2745.31,0.00017808,2]
[328846272,1717871452710,-509.58,0.00017808,2]
[328846273,1717871452719,-542.32,0.00017808,2]
[328846274,1717871452729,-500.0,0.00017808,2]
[328846275,1717871452739,-731.55,0.00017808,2]
[328846276,1717871452748,-587.08,0.00017808,2]
[328846277,1717871452758,-491.42333169,0.00017808,2]
[328846278,1717871452767,-794.29,0.00017808,2]
[328846279,1717871452776,-500.0,0.00017808,2]
[328846280,1717871452785,-500.0,0.00017808,2]
[328846281,1717871452795,-10485.7490764,0.00017898,2]
[328846282,1717871452804,-2763.72024136,0.00018,2]
[328846283,1717871452821,-632.62413596,0.00018,2]
[328846284,1717871452831,-154.9690062,0.00018,2]
[328846285,1717871452840,-154.9690062,0.00018,2]
[328846286,1717871452849,-3657.81007463,0.00018,2]
[328846287,1717871452859,-1000.0,0.00018,2]
[328846288,1717871452868,-620.00236027,0.00018065,2]
[328846289,1717871452877,-672.01,0.0001808,2]
[328846290,1717871452887,-672.01,0.00018081,2]
[328846291,1717871452896,-305.14349567,0.00018082,2]
[328846292,1717871452905,-500.0,0.00018082,2]
[328846293,1717871452915,-500.0,0.00018082,2]
[328846294,1717871452924,-506.47,0.00018082,2]
[328846295,1717871452934,-500.0,0.00018082,2]
[328846296,1717871452944,-500.0,0.00018082,2]
[328846297,1717871452959,-500.0,0.00018082,2]
[328846298,1717871452968,-500.0,0.00018082,2]
[328846299,1717871452978,-500.0,0.00018082,2]
[328846300,1717871452988,-500.0,0.00018082,2]
[328846301,1717871452998,-704.28,0.00018082,2]
[328846302,1717871453008,-2443.88,0.00018082,2]
[328846303,1717871453018,-500.0,0.00018082,2]
[328846304,1717871453030,-627.17,0.00018082,2]
[328846305,1717871453039,-500.0,0.00018082,2]
[328846306,1717871453048,-615.68,0.00018082,2]
[328846307,1717871453058,-1169.43,0.00018082,2]
[328846308,1717871453067,-500.0,0.00018082,2]
[328846309,1717871453076,-9986.09,0.00018082,2]
[328846310,1717871453086,-500.0,0.00018082,2]
[328846311,1717871453095,-729.54,0.00018082,2]
[328846312,1717871453105,-592.49,0.00018082,2]
[328846313,1717871453114,-500.0,0.00018082,2]
[328846314,1717871453124,-2453.06,0.00018082,2]
[328846315,1717871453134,-1467.98,0.00018082,2]
[328846316,1717871453143,-607.62,0.00018082,2]
[328846317,1717871453153,-299.09560693,0.00018082,2]
[328846318,1717871453162,-591.77,0.00018082,2]
[328846319,1717871453172,-500.0,0.00018082,2]
[328846320,1717871453182,-3580.48,0.00018082,2]
[328846321,1717871453192,-724.7,0.00018082,2]
[328846322,1717871453202,-709.55,0.00018082,2]
[328846323,1717871453212,-500.0,0.00018082,2]
[328846324,1717871453222,-1740.05,0.00018082,2]
[328846325,1717871453231,-673.37,0.00018082,2]
[328846326,1717871453242,-1449.68,0.00018082,2]
[328846327,1717871453251,-500.0,0.00018082,2]
[328846328,1717871453261,-1057.93,0.00018082,2]
[328846329,1717871453271,-2745.31,0.00018082,2]
[328846330,1717871453280,-509.58,0.00018082,2]
[328846331,1717871453290,-542.32,0.00018082,2]
[328846332,1717871453300,-500.0,0.00018082,2]
[328846333,1717871453310,-731.55,0.00018082,2]
[328846334,1717871453320,-587.08,0.00018082,2]
[328846335,1717871453330,-794.29,0.00018082,2]
[328846336,1717871453340,-500.0,0.00018082,2]
[328846337,1717871453350,-154.98450155,0.00018354,2]
[328846338,1717871453360,-672.01,0.00018355,2]
[328846339,1717871453370,-500.0,0.00018356,2]
[328846340,1717871453380,-500.0,0.00018356,2]
[328846341,1717871453390,-506.47,0.00018356,2]
[328846342,1717871453401,-500.0,0.00018356,2]
[328846343,1717871453411,-500.0,0.00018356,2]
[328846344,1717871453421,-500.0,0.00018356,2]
[328846345,1717871453430,-500.0,0.00018356,2]
[328846346,1717871453539,-500.0,0.00018356,2]
[328846347,1717871453550,-500.0,0.00018356,2]
[328846348,1717871453560,-704.28,0.00018356,2]
[328846349,1717871453570,-2443.88,0.00018356,2]
[328846350,1717871453581,-500.0,0.00018356,2]
[328846351,1717871453590,-627.17,0.00018356,2]
[328846352,1717871453600,-500.0,0.00018356,2]
[328846353,1717871453610,-615.68,0.00018356,2]
[328846354,1717871453620,-1169.43,0.00018356,2]
[328846355,1717871453630,-500.0,0.00018356,2]
[328846356,1717871453641,-9986.09,0.00018356,2]
[328846357,1717871453651,-517.46236416,0.00018356,2]
[328846358,1717871453662,-729.54,0.00018356,2]
[328846359,1717871453672,-592.49,0.00018356,2]
[328846360,1717871453682,-500.0,0.00018356,2]
[328846361,1717871453692,-2453.06,0.00018356,2]
[328846362,1717871453703,-1467.98,0.00018356,2]
[328846363,1717871453713,-607.62,0.00018356,2]
[328846364,1717871453723,-591.77,0.00018356,2]
[328846365,1717871453732,-500.0,0.00018356,2]
[328846366,1717871453744,-3580.48,0.00018356,2]
[328846367,1717871453754,-724.7,0.00018356,2]
[328846368,1717871453764,-709.55,0.00018356,2]
[328846369,1717871453775,-500.0,0.00018356,2]
[328846370,1717871453785,-1740.05,0.00018356,2]
[328846371,1717871453795,-673.37,0.00018356,2]
[328846372,1717871453806,-1449.68,0.00018356,2]
[328846373,1717871453816,-500.0,0.00018356,2]
[328846374,1717871453826,-1057.93,0.00018356,2]
[328846375,1717871453836,-2745.31,0.00018356,2]
[328846376,1717871453846,-509.58,0.00018356,2]
[328846377,1717871453855,-542.32,0.00018356,2]
[328846378,1717871453865,-500.0,0.00018356,2]
[328846379,1717871453875,-731.55,0.00018356,2]
[328846380,1717871453886,-587.08,0.00018356,2]
[328846381,1717871453896,-794.29,0.00018356,2]
[328846382,1717871453906,-500.0,0.00018356,2]
[328846383,1717871453916,-204.9,0.00018493,2]
[328846384,1717871453926,-500.0,0.00018493,2]
[328846385,1717871453937,-606.49853317,0.000185,2]
[328846386,1717871453948,-672.01,0.00018529,2]
[328846387,1717871453962,-672.01,0.00018529,2]
[328846388,1717871453972,-672.01,0.00018629,2]
[328846389,1717871453982,-500.0,0.0001863,2]
[328846390,1717871453994,-500.0,0.0001863,2]
[328846391,1717871454004,-506.47,0.0001863,2]
[328846392,1717871454014,-500.0,0.0001863,2]
[328846393,1717871454023,-500.0,0.0001863,2]
[328846394,1717871454036,-500.0,0.0001863,2]
[328846395,1717871454045,-500.0,0.0001863,2]
[328846396,1717871454054,-500.0,0.0001863,2]
[328846397,1717871454064,-500.0,0.0001863,2]
[328846398,1717871454074,-704.28,0.0001863,2]
[328846399,1717871454083,-2443.88,0.0001863,2]
[328846400,1717871454093,-211.27,0.0001863,2]
[328846401,1717871454102,-627.17,0.0001863,2]
[328846402,1717871454113,-500.0,0.0001863,2]
[328846403,1717871454123,-615.68,0.0001863,2]
[328846404,1717871454133,-1169.43,0.0001863,2]
[328846405,1717871454144,-500.0,0.0001863,2]
[328846406,1717871454154,-9986.09,0.0001863,2]
[328846407,1717871454164,-729.54,0.0001863,2]
[328846408,1717871454174,-592.49,0.0001863,2]
[328846409,1717871454183,-500.0,0.0001863,2]
[328846410,1717871454194,-2453.06,0.0001863,2]
[328846411,1717871454204,-1467.98,0.0001863,2]
[328846412,1717871454214,-607.62,0.0001863,2]
[328846413,1717871454224,-591.77,0.0001863,2]
[328846414,1717871454234,-500.0,0.0001863,2]
[328846415,1717871454244,-3580.48,0.0001863,2]
[328846416,1717871454254,-724.7,0.0001863,2]
[328846417,1717871454264,-709.55,0.0001863,2]
[328846418,1717871454275,-500.0,0.0001863,2]
[328846419,1717871454284,-1740.05,0.0001863,2]
[328846420,1717871454294,-673.37,0.0001863,2]
[328846421,1717871454305,-1449.68,0.0001863,2]
[328846422,1717871454314,-500.0,0.0001863,2]
[328846423,1717871454325,-1057.93,0.0001863,2]
[328846424,1717871454335,-2745.31,0.0001863,2]
[328846425,1717871454346,-509.58,0.0001863,2]
[328846426,1717871454356,-542.32,0.0001863,2]
[328846427,1717871454367,-500.0,0.0001863,2]
[328846428,1717871454378,-731.55,0.0001863,2]
[328846429,1717871454389,-587.08,0.0001863,2]
[328846430,1717871454399,-794.29,0.0001863,2]
[328846431,1717871454409,-500.0,0.0001863,2]
[328846432,1717871454420,-160.0,0.000187,2]
[328846433,1717871454430,-153.0,0.0001884,2]
[328846434,1717871454440,-153.0,0.0001884,2]
[328846435,1717871454450,-153.0,0.0001884,2]
[328846436,1717871454460,-153.0,0.0001884,2]
[328846437,1717871454470,-6822.22504983,0.000189,2]
[328846438,1717871454480,-672.01,0.00018902,2]
[328846439,1717871454490,-500.0,0.00018904,2]
[328846440,1717871454500,-500.0,0.00018904,2]
[328846441,1717871454510,-506.47,0.00018904,2]
[328846442,1717871454521,-389.96445535,0.00018904,2]
[328846443,1717871454531,-500.0,0.00018904,2]
[328846444,1717871454541,-500.0,0.00018904,2]
[328846445,1717871454550,-500.0,0.00018904,2]
[328846446,1717871454560,-500.0,0.00018904,2]
[328846447,1717871454570,-500.0,0.00018904,2]
[328846448,1717871454580,-704.28,0.00018904,2]
[328846449,1717871454590,-2443.88,0.00018904,2]
[328846450,1717871454599,-627.17,0.00018904,2]
[328846451,1717871454609,-500.0,0.00018904,2]
[328846452,1717871454619,-615.68,0.00018904,2]
[328846453,1717871454629,-1169.43,0.00018904,2]
[328846454,1717871454639,-577.4986865,0.00018904,2]
[328846455,1717871454649,-9986.09,0.00018904,2]
[328846456,1717871454659,-729.54,0.00018904,2]
[328846457,1717871454669,-592.49,0.00018904,2]
[328846458,1717871454678,-500.0,0.00018904,2]
[328846459,1717871454688,-2453.06,0.00018904,2]
[328846460,1717871454697,-1467.98,0.00018904,2]
[328846461,1717871454707,-607.62,0.00018904,2]
[328846462,1717871454716,-591.77,0.00018904,2]
[328846463,1717871454726,-500.0,0.00018904,2]
[328846464,1717871454736,-3580.48,0.00018904,2]
[328846465,1717871454746,-724.7,0.00018904,2]
[328846466,1717871454756,-709.55,0.00018904,2]
[328846467,1717871454767,-500.0,0.00018904,2]
[328846468,1717871454776,-1740.05,0.00018904,2]
[328846469,1717871454786,-673.37,0.00018904,2]
[328846470,1717871454795,-1449.68,0.00018904,2]
[328846471,1717871454805,-500.0,0.00018904,2]
[328846472,1717871454816,-1057.93,0.00018904,2]
[328846473,1717871454826,-2745.31,0.00018904,2]
[328846474,1717871454839,-509.58,0.00018904,2]
[328846475,1717871454852,-542.32,0.00018904,2]
[328846476,1717871454862,-500.0,0.00018904,2]
[328846477,1717871454873,-731.55,0.00018904,2]
[328846478,1717871454883,-587.08,0.00018904,2]
[328846479,1717871454893,-794.29,0.00018904,2]
[328846480,1717871454903,-500.0,0.00018904,2]
[328846481,1717871454913,-620.00011801,0.00018968,2]
[328846482,1717871454923,-163.05236711,0.00019,2]
[328846483,1717871454932,-1000.0,0.00019,2]
[328846484,1717871454942,-672.01,0.00019176,2]
[328846485,1717871454956,-672.01,0.00019177,2]
[328846486,1717871454967,-672.01,0.00019177,2]
[328846487,1717871454978,-672.01,0.00019177,2]
[328846488,1717871454989,-672.01,0.00019177,2]
[328846489,1717871454999,-672.01359382,0.00019177,2]
[328846490,1717871455009,-588.70037479,0.00019178,2]
[328846491,1717871455019,-588.70037479,0.00019178,2]
[328846492,1717871455029,-588.70037479,0.00019178,2]
[328846493,1717871455042,-588.70037479,0.00019178,2]
[328846494,1717871455053,-588.70037479,0.00019178,2]
[328846495,1717871455063,-588.70037479,0.00019178,2]
[328846496,1717871455072,-588.70037479,0.00019178,2]
[328846497,1717871455082,-588.70037479,0.00019178,2]
[328846498,1717871455092,-588.70037479,0.00019178,2]
[328846499,1717871455101,-588.70037479,0.00019178,2]
[328846500,1717871455111,-588.70037479,0.00019178,2]
[328846501,1717871455121,-588.70037479,0.00019178,2]
[328846502,1717871455131,-588.70037479,0.00019178,2]
[328846503,1717871455141,-588.70037479,0.00019178,2]
[328846504,1717871455150,-588.70037479,0.00019178,2]
[328846505,1717871455160,-588.70037479,0.00019178,2]
[328846506,1717871455170,-588.70037479,0.00019178,2]
[328846507,1717871455181,-588.70037479,0.00019178,2]
[328846508,1717871455191,-588.70037479,0.00019178,2]
[328846509,1717871455200,-588.70037479,0.00019178,2]
[328846510,1717871455209,-588.70037479,0.00019178,2]
[328846511,1717871455219,-588.70037479,0.00019178,2]
[328846512,1717871455229,-588.70037479,0.00019178,2]
[328846513,1717871455240,-588.70037479,0.00019178,2]
[328846514,1717871455249,-588.70037479,0.00019178,2]
[328846515,1717871455259,-588.70037479,0.00019178,2]
[328846516,1717871455268,-328.05300985,0.00019178,2]
[328846517,1717871455378,-224.01711939,0.00019178,2]
[328846518,1717871455388,-552.07012924,0.00019178,2]
[328846519,1717871455399,-552.07012924,0.00019178,2]
[328846520,1717871455408,-552.07012924,0.00019178,2]
[328846521,1717871455418,-122.51311607,0.00019178,2]
[328846522,1717871600141,802.16,0.00010959,2]
[328846540,1717872181049,155.08139107,0.00010959,2]
[328846541,1717872187062,3638.63098961,0.00010959,2]
[328846542,1717872195328,259.45069077,0.00010959,2]
[328846543,1717872203020,3638.63098961,0.00010959,2]
[328846544,1717872215474,155.11784868,0.00010959,2]
[328846545,1717872231026,221.31341132,0.00010959,2]
[328846546,1717872231060,1842.52526094,0.00010959,2]
[328846547,1717872249411,236.98052675,0.00010959,2]
[328846548,1717872537573,292.39507624,0.00012326,2]
[328846555,1717872633073,-869.78266434,0.00016336,2]
[328846556,1717872633084,-2112.56090718,0.0001642,2]
[328846558,1717872633094,-535.23707084,0.00016434,2]
[328846560,1717872633104,-173.93827808,0.00016434,2]
[328846562,1717872633114,-155.88533814,0.00016434,2]
[328846564,1717872633124,-213.27584648,0.00016434,2]
[328846566,1717872633134,-397.52663581,0.00016435,2]
[328846613,1717872639023,-1649.16941498,0.00016435,2]
[328846615,1717872639038,-625.44716545,0.00016435,2]
[328846617,1717872639051,-5900.00000004,0.00016435,2]
[328846620,1717872639064,-4227.54124873,0.00016435,2]
[328846678,1717872639674,-1366.35125897,0.00016435,2]
[328846680,1717872639685,-3071.27011912,0.00016436,2]
[328846683,1717872639695,-274.34424561,0.00016436,2]
[328846685,1717872639707,-774.09027042,0.00016436,2]
[328846687,1717872639718,-194.99346474,0.00016436,2]
[328846689,1717872639729,-309.87604958,0.00016436,2]
[328846691,1717872639740,-187.27413947,0.00016436,2]
[328846693,1717872639751,-489.4618939,0.00016436,2]
[328846695,1717872639762,-837.71685131,0.00016436,2]
[328846697,1717872639774,-10536.38828398,0.00016436,2]
[328846699,1717872639785,-517.33468888,0.00016436,2]
[328846701,1717872639796,-526.09322986,0.00016436,2]
[328846703,1717872639808,-282.32326129,0.00016437,2]
[328846705,1717872639819,-245.91756106,0.00016438,2]
[328846707,1717872639830,-500.0,0.00016438,2]
[328846709,1717872639842,-164.54567397,0.00016438,2]
[328846711,1717872639853,-500.0,0.00016438,2]
[328846713,1717872639864,-500.0,0.00016438,2]
[328846715,1717872639875,-500.0,0.00016438,2]
[328846717,1717872639887,-263.22417228,0.00016438,2]
[328846720,1717872639898,-500.0,0.00016438,2]
[328846722,1717872639909,-500.0,0.00016438,2]
[328846724,1717872639920,-500.0,0.00016438,2]
[328846726,1717872639937,-500.0,0.00016438,2]
[328846728,1717872639948,-500.0,0.00016438,2]
[328846730,1717872639960,-500.0,0.00016438,2]
[328846732,1717872639971,-500.0,0.00016438,2]
[328846734,1717872639982,-500.0,0.00016438,2]
[328846736,1717872639993,-500.0,0.00016438,2]
[328846738,1717872640004,-500.0,0.00016438,2]
[328846740,1717872640015,-500.0,0.00016438,2]
[328846742,1717872640026,-500.0,0.00016438,2]
[328846744,1717872640037,-500.0,0.00016438,2]
[328846746,1717872640048,-523.42,0.00016438,2]
[328846749,1717872640059,-522.61317051,0.00016438,2]
[328846751,1717872640070,-500.0,0.00016438,2]
[328846753,1717872640080,-500.0,0.00016438,2]
[328846755,1717872640091,-500.0,0.00016438,2]
[328846757,1717872640101,-500.0,0.00016438,2]
[328846759,1717872640113,-500.0,0.00016438,2]
[328846761,1717872640123,-500.0,0.00016438,2]
[328846763,1717872640134,-500.0,0.00016438,2]
[328846765,1717872640147,-500.0,0.00016438,2]
[328846767,1717872640158,-513.87,0.00016438,2]
[328846769,1717872640169,-504.09,0.00016438,2]
[328846771,1717872640179,-552.3,0.00016438,2]
[328846773,1717872640189,-500.0,0.00016438,2]
[328846774,1717872640200,-500.0,0.00016438,2]
[328846776,1717872640210,-500.0,0.00016438,2]
[328846778,1717872640221,-500.0,0.00016438,2]
[328846780,1717872640231,-500.0,0.00016438,2]
[328846782,1717872640242,-843.61,0.00016438,2]
[328846783,1717872640253,-500.0,0.00016438,2]
[328846784,1717872640264,-503.94,0.00016438,2]
[328846785,1717872640275,-500.0,0.00016438,2]
[328846786,1717872640286,-500.0,0.00016438,2]
[328846787,1717872640297,-500.0,0.00016438,2]
[328846788,1717872640308,-500.0,0.00016438,2]
[328846789,1717872640319,-500.0,0.00016438,2]
[328846790,1717872640329,-500.0,0.00016438,2]
[328846791,1717872640342,-2180.91,0.00016438,2]
[328846792,1717872640353,-500.0,0.00016438,2]
[328846793,1717872640368,-500.0,0.00016438,2]
[328846794,1717872640378,-570.57,0.00016438,2]
[328846795,1717872640390,-1142.04,0.00016438,2]
[328846796,1717872640401,-500.0,0.00016438,2]
[328846797,1717872640412,-500.0,0.00016438,2]
[328846798,1717872640423,-500.0,0.00016438,2]
[328846799,1717872640434,-436.68127201,0.00016438,2]
[328846800,1717872640446,-2943.97,0.00016438,2]
[328846801,1717872640456,-274.69931376,0.00016438,2]
[328846802,1717872640468,-500.0,0.00016438,2]
[328846803,1717872640478,-500.0,0.00016438,2]
[328846804,1717872640490,-560.94686212,0.00016438,2]
[328846805,1717872640502,-500.0,0.00016438,2]
[328846806,1717872640513,-500.0,0.00016438,2]
[328846807,1717872640525,-500.0,0.00016438,2]
[328846808,1717872640535,-500.0,0.00016438,2]
[328846809,1717872640547,-1015.03,0.00016438,2]
[328846810,1717872640558,-514.44,0.00016438,2]
[328846811,1717872640568,-508.74057933,0.00016438,2]
[328846812,1717872640579,-500.0,0.00016438,2]
[328846813,1717872640589,-555.41,0.00016438,2]
[328846814,1717872640600,-500.0,0.00016438,2]
[328846815,1717872640612,-1228.85,0.00016438,2]
[328846816,1717872640623,-500.0,0.00016438,2]
[328846817,1717872640634,-2007.38,0.00016438,2]
[328846818,1717872640646,-500.0,0.00016438,2]
[328846819,1717872640657,-731.8,0.00016438,2]
[328846820,1717872640668,-500.0,0.00016438,2]
[328846821,1717872640679,-500.0,0.00016438,2]
[328846822,1717872640690,-500.0,0.00016438,2]
[328846823,1717872640701,-500.0,0.00016438,2]
[328846824,1717872640712,-333.08421396,0.00016438,2]
[328846825,1717872640723,-500.0,0.00016438,2]
[328846826,1717872640734,-533.61,0.00016438,2]
[328846827,1717872640745,-500.0,0.00016438,2]
[328846828,1717872640756,-500.0,0.00016438,2]
[328846829,1717872640767,-500.0,0.00016438,2]
[328846830,1717872640779,-500.0,0.0001671,2]
[328846831,1717872640791,-500.0,0.0001671,2]
[328846832,1717872640802,-500.0,0.0001671,2]
[328846833,1717872640812,-500.0,0.0001671,2]
[328846834,1717872640823,-500.0,0.0001671,2]
[328846835,1717872640834,-345.06273923,0.0001671,2]
[328846836,1717872640845,-500.0,0.0001671,2]
[328846837,1717872640856,-500.0,0.0001671,2]
[328846838,1717872640866,-500.0,0.0001671,2]
[328846839,1717872640877,-6382.57,0.0001671,2]
[328846840,1717872640887,-500.0,0.0001671,2]
[328846841,1717872640898,-578.14,0.0001671,2]
[328846842,1717872640908,-500.0,0.00016711,2]
[328846843,1717872640918,-500.0,0.00016712,2]
[328846844,1717872640928,-600.35972215,0.00016712,2]
[328846845,1717872640938,-500.0,0.00016712,2]
[328846846,1717872640948,-500.0,0.00016712,2]
[328846847,1717872640958,-500.0,0.00016712,2]
[328846848,1717872640967,-500.0,0.00016712,2]
[328846849,1717872640977,-500.0,0.00016712,2]
[328846850,1717872640987,-500.0,0.00016712,2]
[328846851,1717872640997,-500.0,0.00016712,2]
[328846852,1717872641007,-500.0,0.00016712,2]
[328846853,1717872641017,-500.0,0.00016712,2]
[328846854,1717872641028,-500.0,0.00016712,2]
[328846855,1717872641038,-523.42,0.00016712,2]
[328846856,1717872641048,-222.93482532,0.00016712,2]
[328846857,1717872641058,-500.0,0.00016712,2]
[328846858,1717872641068,-513.87,0.00016712,2]
[328846859,1717872641078,-552.3,0.00016712,2]
[328846860,1717872641088,-500.0,0.00016712,2]
[328846861,1717872641098,-500.0,0.00016712,2]
[328846862,1717872641108,-500.0,0.00016712,2]
[328846863,1717872641118,-843.61,0.00016712,2]
[328846864,1717872641127,-500.0,0.00016712,2]
[328846865,1717872641137,-503.94,0.00016712,2]
[328846866,1717872641148,-500.0,0.00016712,2]
[328846867,1717872641158,-500.0,0.00016712,2]